fUSD/lending_fUSD_20250103
["ID","MTS","AMOUNT","RATE_DAILY","PERIOD"]
[347498937,1735878650022,-500.0,9.752e-05,2]
[347498938,1735878650031,-500.0,9.752e-05,2]
[347498939,1735878650041,-500.0,9.752e-05,2]
[347498940,1735878650050,-500.0,9.752e-05,2]
[347498941,1735878650059,-1790.67,9.752e-05,2]
[347498942,1735878650069,-1763.1,9.752e-05,2]
[347498943,1735878650078,-500.0,9.752e-05,2]
[347498944,1735878650087,-500.0,9.752e-05,2]
[347498945,1735878650097,-500.0,9.752e-05,2]
[347498946,1735878650106,-542.99,9.752e-05,2]
[347498947,1735878650116,-500.0,9.752e-05,2]
[347498948,1735878650125,-1644.17,9.752e-05,2]
[347498949,1735878650134,-500.0,9.752e-05,2]
[347498950,1735878650143,-500.0,9.752e-05,2]
[347498951,1735878650153,-500.0,9.752e-05,2]
[347498952,1735878650162,-500.0,9.752e-05,2]
[347498953,1735878650171,-500.0,9.752e-05,2]
[347498954,1735878650181,-539.18331874,9.752e-05,2]
[347498955,1735878650190,-500.0,9.752e-05,2]
[347498956,1735878650200,-682.61,9.752e-05,2]
[347498957,1735878650209,-1066.0,9.752e-05,2]
[347498958,1735878650218,-500.0,9.752e-05,2]
[347498959,1735878650227,-500.0,9.752e-05,2]
[347498960,1735878650238,-3142.33,9.752e-05,2]
[347498961,1735878650247,-500.0,9.752e-05,2]
[347498962,1735878650256,-753.1,9.752e-05,2]
[347498963,1735878650266,-2405.06,9.752e-05,2]
[347498964,1735878650275,-500.0,9.752e-05,2]
[347498965,1735878650285,-500.0,9.752e-05,2]
[347498966,1735878650294,-500.0,9.752e-05,2]
[347498967,1735878650303,-500.0,9.752e-05,2]
[347498968,1735878650313,-801.12,9.752e-05,2]
[347498969,1735878650322,-500.0,9.752e-05,2]
[347498970,1735878650332,-1344.36,9.752e-05,2]
[347498971,1735878650341,-1803.21,9.752e-05,2]
[347498972,1735878650350,-500.0,9.752e-05,2]
[347498973,1735878650360,-1367.2,9.752e-05,2]
[347498974,1735878650369,-500.0,9.752e-05,2]
[347498975,1735878650378,-500.0,9.752e-05,2]
[347498976,1735878650388,-500.0,9.752e-05,2]
[347498977,1735878650397,-500.0,9.752e-05,2]
[347498978,1735878650406,-1495.95,9.752e-05,2]
[347498979,1735878650415,-500.0,9.752e-05,2]
[347498980,1735878650425,-500.0,9.752e-05,2]
[347498981,1735878650434,-500.0,9.752e-05,2]
[347498982,1735878650443,-500.0,9.752e-05,2]
[347498983,1735878650453,-561.51,9.752e-05,2]
[347498984,1735878650462,-500.0,9.752e-05,2]
[347498985,1735878650472,-500.0,9.752e-05,2]
[347498986,1735878650481,-500.0,9.752e-05,2]
[347498987,1735878650490,-1017.14,9.752e-05,2]
[347498988,1735878650499,-1797.17,9.752e-05,2]
[347498989,1735878650509,-500.0,9.752e-05,2]
[347498990,1735878650519,-3901.94,9.752e-05,2]
[347498991,1735878650528,-500.0,9.752e-05,2]
[347498992,1735878650537,-661.91,9.752e-05,2]
[347498993,1735878650548,-500.0,9.752e-05,2]
[347498994,1735878650557,-500.0,9.752e-05,2]
[347498995,1735878650567,-2287.27,9.752e-05,2]
[347498996,1735878650577,-500.0,9.752e-05,2]
[347498997,1735878650586,-500.0,9.752e-05,2]
[347498998,1735878650596,-500.0,9.752e-05,2]
[347498999,1735878650605,-500.0,9.752e-05,2]
[347499000,1735878650614,-1842.29,9.752e-05,2]
[347499001,1735878650624,-500.0,9.752e-05,2]
[347499002,1735878650633,-500.0,9.752e-05,2]
[347499003,1735878650646,-500.0,9.752e-05,2]
[347499004,1735878650655,-1346.04,9.752e-05,2]
[347499005,1735878650664,-500.0,9.752e-05,2]
[347499006,1735878650673,-500.0,9.752e-05,2]
[347499007,1735878650683,-500.0,9.752e-05,2]
[347499008,1735878650693,-1505.35,9.752e-05,2]
[347499009,1735878650702,-500.0,9.752e-05,2]
[347499010,1735878650712,-500.0,9.752e-05,2]
[347499011,1735878650722,-500.0,9.752e-05,2]
[347499012,1735878650733,-741.7,9.752e-05,2]
[347499013,1735878650742,-1464.66,9.752e-05,2]
[347499014,1735878650753,-500.0,9.752e-05,2]
[347499015,1735878650764,-500.0,9.752e-05,2]
[347499016,1735878650773,-2144.45,9.752e-05,2]
[347499017,1735878650783,-1447.38,9.752e-05,2]
[347499018,1735878650791,-500.0,9.752e-05,2]
[347499019,1735878650802,-500.0,9.752e-05,2]
[347499020,1735878650811,-500.0,9.752e-05,2]
[347499021,1735878650820,-500.0,9.752e-05,2]
[347499022,1735878650829,-1903.67,9.752e-05,2]
[347499023,1735878650838,-500.0,9.752e-05,2]
[347499024,1735878650847,-3135.47,9.752e-05,2]
[347499025,1735878650856,-500.0,9.752e-05,2]
[347499026,1735878650866,-500.0,9.752e-05,2]
[347499027,1735878650875,-2092.57,9.752e-05,2]
[347499028,1735878650884,-1107.22,9.752e-05,2]
[347499029,1735878650894,-1590.77,9.752e-05,2]
[347499030,1735878650903,-6942.11,9.752e-05,2]
[347499031,1735878650912,-500.0,9.752e-05,2]
[347499032,1735878650922,-3598.16,9.752e-05,2]
[347499033,1735878650931,-500.0,9.752e-05,2]
[347499034,1735878650940,-500.0,9.752e-05,2]
[347499035,1735878650950,-500.0,9.752e-05,2]
[347499036,1735878650959,-2882.59,9.752e-05,2]
[347499037,1735878650968,-500.0,9.752e-05,2]
[347499038,1735878650977,-500.0,9.752e-05,2]
[347499039,1735878650987,-635.93,9.752e-05,2]
[347499040,1735878650996,-1209.37,9.752e-05,2]
[347499041,1735878651005,-500.0,9.752e-05,2]
[347499042,1735878651014,-1042.94,9.752e-05,2]
[347499043,1735878651023,-200.284812,9.752e-05,2]
[347499044,1735878651931,-299.715188,9.752e-05,2]
[347499045,1735878651940,-1054.78,9.752e-05,2]
[347499046,1735878651950,-500.0,9.752e-05,2]
[347499047,1735878651959,-4935.24,9.752e-05,2]
[347499048,1735878651968,-720.89,9.752e-05,2]
[347499049,1735878651978,-500.0,9.752e-05,2]
[347499050,1735878651987,-500.0,9.752e-05,2]
[347499051,1735878651996,-1210.9,9.752e-05,2]
[347499052,1735878652005,-500.0,9.752e-05,2]
[347499053,1735878652014,-500.0,9.752e-05,2]
[347499054,1735878652024,-500.0,9.752e-05,2]
[347499055,1735878652034,-500.0,9.752e-05,2]
[347499056,1735878652042,-500.0,9.752e-05,2]
[347499057,1735878652053,-500.0,9.752e-05,2]
[347499058,1735878652062,-602.74,9.752e-05,2]
[347499059,1735878652071,-2045.72,9.752e-05,2]
[347499060,1735878652081,-867.26,9.752e-05,2]
[347499061,1735878652090,-500.0,9.752e-05,2]
[347499062,1735878652099,-1639.86,9.752e-05,2]
[347499063,1735878652108,-500.0,9.752e-05,2]
[347499064,1735878652117,-500.0,9.752e-05,2]
[347499065,1735878652126,-500.0,9.752e-05,2]
[347499066,1735878652137,-1220.02,9.752e-05,2]
[347499067,1735878652147,-500.0,9.752e-05,2]
[347499068,1735878652156,-6826.62,9.752e-05,2]
[347499069,1735878652167,-500.0,9.752e-05,2]
[347499070,1735878652175,-500.0,9.752e-05,2]
[347499071,1735878652185,-9391.3,9.752e-05,2]
[347499072,1735878652194,-1608.63,9.752e-05,2]
[347499073,1735878652203,-500.0,9.752e-05,2]
[347499074,1735878652213,-500.0,9.752e-05,2]
[347499075,1735878652223,-2069.48,9.752e-05,2]
[347499076,1735878652231,-500.0,9.752e-05,2]
[347499077,1735878652241,-500.0,9.752e-05,2]
[347499078,1735878652251,-500.0,9.752e-05,2]
[347499079,1735878652259,-500.0,9.752e-05,2]
[347499080,1735878652269,-2598.93,9.752e-05,2]
[347499081,1735878652278,-619.0,9.753e-05,2]
[347499082,1735878652287,-507.77,9.753e-05,2]
[347499083,1735878652298,-515.11109888,9.753e-05,2]
[347499084,1735878652308,-500.49750004,9.753e-05,2]
[347499085,1735878652317,-500.0,9.753e-05,2]
[347499086,1735878652326,-500.0,9.753e-05,2]
[347499087,1735878652335,-500.0,9.753e-05,2]
[347499088,1735878652345,-500.0,9.753e-05,2]
[347499089,1735878652354,-500.0,9.753e-05,2]
[347499090,1735878652364,-500.0,9.753e-05,2]
[347499091,1735878652374,-500.0,9.753e-05,2]
[347499092,1735878652384,-500.0,9.753e-05,2]
[347499093,1735878652393,-500.0,9.753e-05,2]
[347499094,1735878652403,-501.29655053,9.753e-05,2]
[347499095,1735878652412,-500.0,9.753e-05,2]
[347499096,1735878652422,-500.0,9.753e-05,2]
[347499097,1735878652431,-590.9281975,9.753e-05,2]
[347499098,1735878652440,-500.0,9.753e-05,2]
[347499099,1735878652450,-500.0,9.753e-05,2]
[347499100,1735878652459,-500.0,9.753e-05,2]
[347499101,1735878652468,-500.0,9.753e-05,2]
[347499102,1735878652477,-500.0,9.753e-05,2]
[347499103,1735878652487,-500.0,9.753e-05,2]
[347499104,1735878652496,-500.0,9.753e-05,2]
[347499105,1735878652506,-500.0,9.753e-05,2]
[347499106,1735878652515,-500.0,9.753e-05,2]
[347499107,1735878652524,-500.0,9.753e-05,2]
[347499108,1735878652534,-500.0,9.753e-05,2]
[347499109,1735878652543,-500.0,9.753e-05,2]
[347499110,1735878652553,-500.0,9.753e-05,2]
[347499111,1735878652563,-500.0,9.753e-05,2]
[347499112,1735878652572,-500.0,9.753e-05,2]
[347499113,1735878652582,-500.0,9.753e-05,2]
[347499114,1735878652591,-500.0,9.753e-05,2]
[347499115,1735878652601,-490.61317132,9.753e-05,2]
[347499116,1735878652610,-523.74124085,9.753e-05,2]
[347499117,1735878652619,-500.77985496,9.753e-05,2]
[347499118,1735878652629,-500.0,9.753e-05,2]
[347499119,1735878652638,-500.0,9.753e-05,2]
[347499120,1735878652651,-527.14043485,9.753e-05,2]
[347499121,1735878652662,-500.0,9.753e-05,2]
[347499122,1735878652671,-500.0,9.753e-05,2]
[347499123,1735878652680,-501.15167688,9.753e-05,2]
[347499124,1735878652690,-500.0,9.753e-05,2]
[347499125,1735878652700,-500.0,9.753e-05,2]
[347499126,1735878652709,-500.0,9.753e-05,2]
[347499127,1735878652720,-500.0,9.753e-05,2]
[347499128,1735878652729,-491.80549992,9.753e-05,2]
[347499129,1735878652738,-500.0,9.753e-05,2]
[347499130,1735878652748,-500.0,9.753e-05,2]
[347499131,1735878652757,-500.0,9.753e-05,2]
[347499132,1735878652767,-500.0,9.753e-05,2]
[347499133,1735878652776,-500.0,9.753e-05,2]
[347499134,1735878652786,-500.0,9.753e-05,2]
[347499135,1735878652796,-500.0,9.753e-05,2]
[347499136,1735878652806,-563.23832269,9.753e-05,2]
[347499137,1735878652816,-500.0,9.753e-05,2]
[347499138,1735878652826,-500.0,9.753e-05,2]
[347499139,1735878652835,-500.0,9.753e-05,2]
[347499140,1735878652845,-500.0,9.753e-05,2]
[347499141,1735878652855,-500.0,9.753e-05,2]
[347499142,1735878652864,-500.0,9.753e-05,2]
[347499143,1735878652874,-500.0,9.753e-05,2]
[347499144,1735878652884,-500.0,9.753e-05,2]
[347499145,1735878652893,-2988.26,9.753e-05,2]
[347499146,1735878652902,-500.0,9.753e-05,2]
[347499147,1735878652912,-500.0,9.753e-05,2]
[347499148,1735878652921,-500.0,9.753e-05,2]
[347499149,1735878652931,-500.0,9.753e-05,2]
[347499150,1735878652940,-500.0,9.753e-05,2]
[347499151,1735878652949,-500.0,9.753e-05,2]
[347499152,1735878652958,-500.0,9.753e-05,2]
[347499153,1735878652967,-500.0,9.753e-05,2]
[347499154,1735878652976,-500.0,9.753e-05,2]
[347499155,1735878652986,-543.4277758,9.753e-05,2]
[347499156,1735878652995,-582.02,9.753e-05,2]
[347499157,1735878653004,-500.0,9.753e-05,2]
[347499158,1735878653013,-500.0,9.753e-05,2]
[347499159,1735878653022,-1777.77,9.753e-05,2]
[347499160,1735878653031,-500.0,9.753e-05,2]
[347499161,1735878653041,-500.0,9.753e-05,2]
[347499162,1735878653051,-500.0,9.753e-05,2]
[347499163,1735878653060,-684.53,9.753e-05,2]
[347499164,1735878653069,-500.0,9.753e-05,2]
[347499165,1735878653079,-500.0,9.753e-05,2]
[347499166,1735878653088,-500.0,9.753e-05,2]
[347499167,1735878653097,-500.0,9.753e-05,2]
[347499168,1735878653107,-642.08,9.753e-05,2]
[347499169,1735878653116,-500.0,9.753e-05,2]
[347499170,1735878653125,-1496.64,9.753e-05,2]
[347499171,1735878653134,-1224.23,9.753e-05,2]
[347499172,1735878653143,-500.0,9.753e-05,2]
[347499173,1735878653153,-820.13,9.753e-05,2]
[347499174,1735878653162,-500.0,9.753e-05,2]
[347499175,1735878653172,-500.0,9.753e-05,2]
[347499176,1735878653181,-500.0,9.753e-05,2]
[347499177,1735878653191,-500.0,9.753e-05,2]
[347499178,1735878653200,-1134.31,9.753e-05,2]
[347499179,1735878653210,-500.0,9.753e-05,2]
[347499180,1735878653219,-730.97,9.753e-05,2]
[347499181,1735878653228,-500.0,9.753e-05,2]
[347499182,1735878653238,-500.0,9.753e-05,2]
[347499183,1735878653247,-500.0,9.753e-05,2]
[347499184,1735878653256,-500.0,9.753e-05,2]
[347499185,1735878653265,-500.0,9.753e-05,2]
[347499186,1735878653275,-500.0,9.753e-05,2]
[347499187,1735878653284,-500.0,9.753e-05,2]
[347499188,1735878653293,-642.47403902,9.753e-05,2]
[347499189,1735878653303,-1456.82,9.753e-05,2]
[347499190,1735878653312,-500.0,9.753e-05,2]
[347499191,1735878653321,-500.0,9.753e-05,2]
[347499192,1735878653331,-971.92,9.753e-05,2]
[347499193,1735878653340,-500.0,9.753e-05,2]
[347499194,1735878653350,-500.0,9.753e-05,2]
[347499195,1735878653359,-500.0,9.753e-05,2]
[347499196,1735878653369,-500.0,9.753e-05,2]
[347499197,1735878653378,-500.0,9.753e-05,2]
[347499198,1735878653387,-500.0,9.753e-05,2]
[347499199,1735878653396,-500.0,9.753e-05,2]
[347499200,1735878653406,-268.10493095,9.753e-05,2]
[347499201,1735878653415,-1112.52,9.753e-05,2]
[347499202,1735878653424,-500.0,9.753e-05,2]
[347499203,1735878653434,-1614.77,9.753e-05,2]
[347499204,1735878653443,-500.0,9.753e-05,2]
[347499205,1735878653452,-500.0,9.753e-05,2]
[347499206,1735878653462,-500.0,9.753e-05,2]
[347499207,1735878653471,-500.0,9.753e-05,2]
[347499208,1735878653480,-160.37817881,9.753e-05,2]
[347499209,1735878653489,-1052.35,9.753e-05,2]
[347499210,1735878653498,-500.0,9.753e-05,2]
[347499211,1735878653507,-500.0,9.753e-05,2]
[347499212,1735878653517,-500.0,9.753e-05,2]
[347499213,1735878653526,-500.0,9.753e-05,2]
[347499214,1735878653535,-500.0,9.753e-05,2]
[347499215,1735878653547,-500.0,9.753e-05,2]
[347499216,1735878653556,-500.0,9.753e-05,2]
[347499217,1735878653566,-1106.3,9.753e-05,2]
[347499218,1735878653576,-500.0,9.753e-05,2]
[347499219,1735878653586,-500.0,9.753e-05,2]
[347499220,1735878653596,-500.0,9.753e-05,2]
[347499221,1735878653606,-500.0,9.753e-05,2]
[347499222,1735878653615,-500.0,9.753e-05,2]
[347499223,1735878653624,-500.0,9.753e-05,2]
[347499224,1735878653634,-500.0,9.753e-05,2]
[347499225,1735878653648,-967.86,9.753e-05,2]
[347499226,1735878653657,-500.0,9.753e-05,2]
[347499227,1735878653667,-545.6,9.753e-05,2]
[347499228,1735878653676,-500.0,9.753e-05,2]
[347499229,1735878653686,-500.0,9.753e-05,2]
[347499230,1735878653696,-811.93,9.753e-05,2]
[347499231,1735878653706,-500.0,9.753e-05,2]
[347499232,1735878653715,-500.0,9.753e-05,2]
[347499233,1735878653725,-500.0,9.753e-05,2]
[347499234,1735878653734,-500.0,9.753e-05,2]
[347499235,1735878653744,-2185.75,9.753e-05,2]
[347499236,1735878653754,-500.0,9.753e-05,2]
[347499237,1735878653763,-500.0,9.753e-05,2]
[347499238,1735878653773,-500.0,9.753e-05,2]
[347499239,1735878653782,-500.0,9.753e-05,2]
[347499240,1735878653791,-500.0,9.753e-05,2]
[347499241,1735878653802,-500.0,9.753e-05,2]
[347499242,1735878653813,-500.0,9.753e-05,2]
[347499243,1735878653823,-500.0,9.753e-05,2]
[347499244,1735878653833,-500.0,9.753e-05,2]
[347499245,1735878653842,-709.11,9.753e-05,2]
[347499246,1735878653851,-1004.27,9.753e-05,2]
[347499247,1735878653860,-500.0,9.753e-05,2]
[347499248,1735878653869,-500.0,9.753e-05,2]
[347499249,1735878653878,-641.85,9.753e-05,2]
[347499250,1735878653887,-1019.9,9.753e-05,2]
[347499251,1735878653896,-500.0,9.753e-05,2]
[347499252,1735878653906,-500.0,9.753e-05,2]
[347499253,1735878653916,-500.0,9.753e-05,2]
[347499254,1735878653925,-500.0,9.753e-05,2]
[347499255,1735878653935,-500.0,9.753e-05,2]
[347499256,1735878653944,-500.0,9.753e-05,2]
[347499257,1735878653954,-500.0,9.753e-05,2]
[347499258,1735878653964,-500.0,9.753e-05,2]
[347499259,1735878653974,-500.0,9.753e-05,2]
[347499260,1735878653983,-500.0,9.753e-05,2]
[347499261,1735878653992,-500.0,9.753e-05,2]
[347499262,1735878654003,-603.34853641,9.753e-05,2]
[347499263,1735878654012,-500.0,9.753e-05,2]
[347499264,1735878654023,-500.0,9.753e-05,2]
[347499265,1735878654034,-500.0,9.753e-05,2]
[347499266,1735878654043,-300.0,9.753e-05,2]
[347499267,1735878654053,-500.0,9.753e-05,2]
[347499268,1735878654063,-500.0,9.753e-05,2]
[347499269,1735878654072,-500.0,9.753e-05,2]
[347499270,1735878654081,-500.0,9.753e-05,2]
[347499271,1735878654340,-500.0,9.753e-05,2]
[347499272,1735878654351,-500.0,9.753e-05,2]
[347499273,1735878654360,-500.0,9.753e-05,2]
[347499274,1735878654369,-500.0,9.753e-05,2]
[347499275,1735878654379,-500.0,9.753e-05,2]
[347499276,1735878654389,-500.0,9.753e-05,2]
[347499277,1735878654398,-500.0,9.753e-05,2]
[347499278,1735878654408,-760.51,9.753e-05,2]
[347499279,1735878654417,-500.0,9.753e-05,2]
[347499280,1735878654427,-500.0,9.753e-05,2]
[347499281,1735878654436,-500.0,9.753e-05,2]
[347499282,1735878654445,-500.0,9.753e-05,2]
[347499283,1735878654454,-633.55,9.753e-05,2]
[347499284,1735878654464,-500.0,9.753e-05,2]
[347499285,1735878654473,-500.0,9.753e-05,2]
[347499286,1735878654482,-500.0,9.753e-05,2]
[347499287,1735878654491,-500.0,9.753e-05,2]
[347499288,1735878654501,-500.0,9.753e-05,2]
[347499289,1735878654511,-672.16,9.753e-05,2]
[347499290,1735878654521,-500.0,9.753e-05,2]
[347499291,1735878654530,-500.0,9.753e-05,2]
[347499292,1735878654539,-500.0,9.753e-05,2]
[347499293,1735878654550,-500.0,9.753e-05,2]
[347499294,1735878654559,-500.0,9.753e-05,2]
[347499295,1735878654569,-500.0,9.753e-05,2]
[347499296,1735878654578,-500.0,9.753e-05,2]
[347499297,1735878654587,-500.0,9.753e-05,2]
[347499298,1735878654596,-500.0,9.753e-05,2]
[347499299,1735878654606,-668.64,9.753e-05,2]
[347499300,1735878654616,-500.0,9.753e-05,2]
[347499301,1735878654625,-500.0,9.753e-05,2]
[347499302,1735878654634,-500.0,9.753e-05,2]
[347499303,1735878654648,-337.92553622,9.753e-05,2]
[347499304,1735878654658,-1151.98,9.753e-05,2]
[347499305,1735878654667,-500.0,9.753e-05,2]
[347499306,1735878654677,-642.88267826,9.753e-05,2]
[347499307,1735878654687,-600.53,9.753e-05,2]
[347499308,1735878654698,-1375.09,9.753e-05,2]
[347499309,1735878654707,-500.0,9.753e-05,2]
[347499310,1735878654718,-500.0,9.753e-05,2]
[347499311,1735878654728,-500.0,9.753e-05,2]
[347499312,1735878654738,-500.0,9.753e-05,2]
[347499313,1735878654748,-500.0,9.753e-05,2]
[347499314,1735878654758,-500.0,9.753e-05,2]
[347499315,1735878654767,-875.0,9.753e-05,2]
[347499316,1735878654777,-578.91,9.753e-05,2]
[347499317,1735878654786,-500.0,9.753e-05,2]
[347499318,1735878654795,-684.24,9.753e-05,2]
[347499319,1735878654805,-500.0,9.753e-05,2]
[347499320,1735878654815,-570.51,9.753e-05,2]
[347499321,1735878654824,-500.0,9.753e-05,2]
[347499322,1735878654833,-500.0,9.753e-05,2]
[347499323,1735878654843,-500.0,9.753e-05,2]
[347499324,1735878654853,-500.0,9.753e-05,2]
[347499325,1735878654862,-1086.68,9.753e-05,2]
[347499326,1735878654871,-349.38513479,9.753e-05,2]
[347499327,1735878654880,-585.9,9.753e-05,2]
[347499328,1735878654891,-500.0,9.753e-05,2]
[347499329,1735878654900,-500.38733427,9.753e-05,2]
[347499330,1735878654910,-500.0,9.753e-05,2]
[347499331,1735878654919,-500.0,9.753e-05,2]
[347499332,1735878654929,-500.0,9.753e-05,2]
[347499333,1735878654938,-500.0,9.753e-05,2]
[347499334,1735878654947,-500.0,9.753e-05,2]
[347499335,1735878654956,-500.0,9.753e-05,2]
[347499336,1735878654965,-500.0,9.753e-05,2]
[347499337,1735878654975,-298.33621088,9.753e-05,2]
[347499338,1735878654985,-364.74276937,9.753e-05,2]
[347499339,1735878654994,-500.0,9.753e-05,2]
[347499340,1735878655004,-500.0,9.753e-05,2]
[347499341,1735878655014,-630.99,9.753e-05,2]
[347499342,1735878655023,-500.0,9.753e-05,2]
[347499343,1735878655033,-500.0,9.753e-05,2]
[347499344,1735878655043,-500.0,9.753e-05,2]
[347499345,1735878655053,-500.0,9.753e-05,2]
[347499346,1735878655062,-500.0,9.753e-05,2]
[347499347,1735878655071,-978.11,9.753e-05,2]
[347499348,1735878655080,-500.0,9.753e-05,2]
[347499349,1735878655089,-500.0,9.753e-05,2]
[347499350,1735878655098,-500.0,9.753e-05,2]
[347499351,1735878655107,-500.28930038,9.753e-05,2]
[347499352,1735878655119,-500.0,9.753e-05,2]
[347499353,1735878655128,-1000.0,9.753e-05,2]
[347499354,1735878655137,-507.66,9.753e-05,2]
[347499355,1735878655147,-500.0,9.753e-05,2]
[347499356,1735878655157,-500.0,9.753e-05,2]
[347499357,1735878655166,-3526.87,9.753e-05,2]
[347499358,1735878655176,-500.0,9.753e-05,2]
[347499359,1735878655185,-500.0,9.753e-05,2]
[347499360,1735878655194,-500.0,9.753e-05,2]
[347499361,1735878655204,-500.0,9.753e-05,2]
[347499362,1735878655214,-500.0,9.753e-05,2]
[347499363,1735878655223,-500.0,9.753e-05,2]
[347499364,1735878655233,-500.0,9.753e-05,2]
[347499365,1735878655243,-1030.14,9.753e-05,2]
[347499366,1735878655252,-500.0,9.753e-05,2]
[347499367,1735878655261,-3162.79,9.753e-05,2]
[347499368,1735878655271,-500.0,9.753e-05,2]
[347499369,1735878655280,-1349.95,9.753e-05,2]
[347499370,1735878655289,-4270.59,9.753e-05,2]
[347499371,1735878655299,-500.0,9.753e-05,2]
[347499372,1735878655308,-500.0,9.753e-05,2]
[347499373,1735878655318,-500.0,9.753e-05,2]
[347499374,1735878655327,-500.0,9.753e-05,2]
[347499375,1735878655336,-1344.48,9.753e-05,2]
[347499376,1735878655346,-500.0,9.753e-05,2]
[347499377,1735878655355,-500.0,9.753e-05,2]
[347499378,1735878655364,-544.54,9.753e-05,2]
[347499379,1735878655374,-500.0,9.753e-05,2]
[347499380,1735878655383,-500.0,9.753e-05,2]
[347499381,1735878655392,-500.0,9.753e-05,2]
[347499382,1735878655402,-740.35,9.753e-05,2]
[347499383,1735878655411,-621.73,9.753e-05,2]
[347499384,1735878655421,-1125.5,9.753e-05,2]
[347499385,1735878655431,-500.0,9.753e-05,2]
[347499386,1735878655440,-1999.32,9.753e-05,2]
[347499387,1735878655450,-500.0,9.753e-05,2]
[347499388,1735878655460,-500.0,9.753e-05,2]
[347499389,1735878655470,-500.0,9.753e-05,2]
[347499390,1735878655479,-500.0,9.753e-05,2]
[347499391,1735878655490,-500.0,9.753e-05,2]
[347499392,1735878655500,-500.0,9.753e-05,2]
[347499393,1735878655510,-500.0,9.753e-05,2]
[347499394,1735878655519,-500.0,9.753e-05,2]
[347499395,1735878655529,-500.0,9.753e-05,2]
[347499396,1735878655538,-608.16612184,9.753e-05,2]
[347499397,1735878655547,-500.0,9.753e-05,2]
[347499398,1735878655557,-500.0,9.753e-05,2]
[347499399,1735878655567,-500.0,9.753e-05,2]
[347499400,1735878655577,-500.0,9.753e-05,2]
[347499401,1735878655586,-577.73,9.753e-05,2]
[347499402,1735878655595,-228.41523476,9.753e-05,2]
[347499403,1735878655605,-500.0,9.753e-05,2]
[347499404,1735878655615,-543.38,9.753e-05,2]
[347499405,1735878655626,-500.0,9.753e-05,2]
[347499406,1735878655636,-500.0,9.753e-05,2]
[347499407,1735878655653,-500.0,9.753e-05,2]
[347499408,1735878655663,-500.0,9.753e-05,2]
[347499409,1735878655672,-520.74,9.753e-05,2]
[347499410,1735878655682,-500.0,9.753e-05,2]
[347499411,1735878655692,-500.36205911,9.753e-05,2]
[347499412,1735878655701,-500.0,9.753e-05,2]
[347499413,1735878655710,-500.0,9.753e-05,2]
[347499414,1735878655720,-2114.59,9.753e-05,2]
[347499415,1735878655730,-500.0,9.753e-05,2]
[347499416,1735878655740,-500.0,9.753e-05,2]
[347499417,1735878655750,-501.42,9.753e-05,2]
[347499418,1735878655760,-761.7,9.753e-05,2]
[347499419,1735878655771,-500.0,9.753e-05,2]
[347499420,1735878655781,-2870.73,9.753e-05,2]
[347499421,1735878655791,-1338.3,9.753e-05,2]
[347499422,1735878655800,-1670.12,9.753e-05,2]
[347499423,1735878655810,-500.0,9.753e-05,2]
[347499424,1735878655819,-500.0,9.753e-05,2]
[347499425,1735878655828,-1964.53,9.753e-05,2]
[347499426,1735878655838,-500.0,9.753e-05,2]
[347499427,1735878655847,-500.0,9.753e-05,2]
[347499428,1735878655856,-500.0,9.753e-05,2]
[347499429,1735878655866,-500.0,9.753e-05,2]
[347499430,1735878655875,-801.88,9.753e-05,2]
[347499431,1735878655884,-500.0,9.753e-05,2]
[347499432,1735878655893,-3089.9,9.753e-05,2]
[347499433,1735878655902,-500.0,9.753e-05,2]
[347499434,1735878655911,-500.0,9.753e-05,2]
[347499435,1735878655921,-500.0,9.753e-05,2]
[347499436,1735878655933,-2173.64,9.753e-05,2]